fUSD/lending_fUSD_20240702
["ID","MTS","AMOUNT","RATE_DAILY","PERIOD"]
[330910629,1719937858158,-1359.74,0.00022465,4]
[330910631,1719937858167,-500.0,0.00022465,4]
[330910633,1719937858176,-1359.74,0.00022465,4]
[330910635,1719937858186,-319.04,0.00022465,4]
[330910637,1719937858196,-500.0,0.00022465,4]
[330910639,1719937858205,-1359.74,0.00022465,4]
[330910641,1719937858214,-500.0,0.00022465,4]
[330910643,1719937858223,-151.0,0.00022465,7]
[330910644,1719937858231,-1359.74,0.00022465,4]
[330910646,1719937858241,-500.0,0.00022465,4]
[330910648,1719937858250,-151.0,0.00022465,7]
[330910650,1719937858260,-1359.83,0.00022465,4]
[330910652,1719937858270,-516.29,0.00022465,4]
[330910655,1719937858279,-501.23581745,0.00022465,4]
[330910657,1719937858289,-851.02609563,0.00022465,2]
[330910659,1719937858298,-151.0,0.00022465,7]
[330910660,1719937858308,-500.0,0.00022465,4]
[330910662,1719937858317,-151.0,0.00022465,7]
[330910664,1719937858327,-151.0,0.00022465,7]
[330910666,1719937858336,-500.0,0.00022465,4]
[330910668,1719937858345,-613.05,0.00022465,4]
[330910670,1719937858354,-500.0,0.00022465,4]
[330910672,1719937858364,-500.0,0.00022465,4]
[330910675,1719937858374,-527.87,0.00022465,4]
[330910676,1719937858383,-500.0,0.00022465,4]
[330910678,1719937858392,-2048.8,0.00022465,4]
[330910681,1719937858401,-527.87,0.00022465,4]
[330910683,1719937858411,-500.0,0.00022465,4]
[330910685,1719937858420,-500.0,0.00022465,4]
[330910686,1719937858430,-2048.8,0.00022465,4]
[330910689,1719937858440,-527.87,0.00022465,4]
[330910691,1719937858450,-500.0,0.00022465,4]
[330910693,1719937858460,-500.0,0.00022465,4]
[330910695,1719937858470,-527.87,0.00022465,4]
[330910697,1719937858480,-2048.8,0.00022465,4]
[330910699,1719937858490,-500.0,0.00022465,4]
[330910701,1719937858500,-500.0,0.00022465,4]
[330910703,1719937858511,-500.0,0.00022465,4]
[330910705,1719937858521,-527.87,0.00022465,4]
[330910707,1719937858531,-2048.8,0.00022465,4]
[330910709,1719937858541,-500.0,0.00022465,4]
[330910711,1719937858551,-500.0,0.00022465,4]
[330910713,1719937858561,-500.0,0.00022465,4]
[330910715,1719937858571,-527.87,0.00022465,4]
[330910717,1719937858581,-2048.8,0.00022465,4]
[330910720,1719937858592,-500.0,0.00022465,4]
[330910722,1719937858601,-208.93,0.00022465,4]
[330910724,1719937858611,-500.0,0.00022465,4]
[330910726,1719937858621,-527.87,0.00022465,4]
[330910727,1719937858630,-2048.8,0.00022465,4]
[330910729,1719937858640,-500.0,0.00022465,4]
[330910732,1719937858650,-527.87,0.00022465,4]
[330910734,1719937858661,-2048.8,0.00022465,4]
[330910736,1719937858671,-500.0,0.00022465,4]
[330910738,1719937858681,-500.0,0.00022465,4]
[330910740,1719937858690,-527.87,0.00022465,4]
[330910742,1719937858700,-2048.8,0.00022465,4]
[330910744,1719937858709,-526.23,0.00022465,4]
[330910746,1719937858719,-151.0,0.00022465,7]
[330910748,1719937858728,-500.0,0.00022465,4]
[330910750,1719937858738,-500.0,0.00022465,4]
[330910751,1719937858747,-527.87,0.00022465,4]
[330910753,1719937858756,-2048.8,0.00022465,4]
[330910755,1719937858766,-155.224522,0.00022465,7]
[330910757,1719937858775,-500.0,0.00022465,4]
[330910759,1719937858784,-500.0,0.00022465,4]
[330910761,1719937858794,-500.0,0.00022465,4]
[330910762,1719937858803,-212.1,0.00022465,4]
[330910763,1719937858812,-500.0,0.00022465,4]
[330910764,1719937858823,-500.0,0.00022465,4]
[330910765,1719937858832,-500.0,0.00022465,4]
[330910766,1719937858841,-500.0,0.00022465,4]
[330910767,1719937858850,-500.0,0.00022465,4]
[330910768,1719937858859,-500.0,0.00022465,4]
[330910769,1719937858868,-500.0,0.00022465,4]
[330910771,1719937858877,-500.0,0.00022465,4]
[330910773,1719937858887,-500.0,0.00022465,4]
[330910775,1719937858897,-500.0,0.00022465,4]
[330910777,1719937858906,-500.0,0.00022465,4]
[330910779,1719937858915,-500.0,0.00022465,4]
[330910781,1719937858925,-500.0,0.00022465,4]
[330910783,1719937858935,-500.0,0.00022465,4]
[330910785,1719937858944,-500.0,0.00022465,4]
[330910787,1719937858953,-159.5659182,0.00022465,2]
[330910789,1719937858963,-224.61,0.00022465,4]
[330910791,1719937858973,-500.0,0.00022465,4]
[330910793,1719937858982,-151.0,0.00022465,7]
[330910795,1719937858992,-151.0,0.00022465,7]
[330910797,1719937859001,-500.0,0.00022465,4]
[330910799,1719937859013,-151.0,0.00022465,7]
[330910801,1719937859027,-11053.41,0.00022465,4]
[330910803,1719937859037,-11053.41,0.00022465,4]
[330910805,1719937859046,-330.666223,0.00022465,7]
[330910807,1719937859055,-11053.41,0.00022465,4]
[330910809,1719937859066,-500.0,0.00022465,4]
[330910811,1719937859076,-11053.41,0.00022465,4]
[330910813,1719937859085,-500.0,0.00022465,4]
[330910815,1719937859094,-330.666223,0.00022465,7]
[330910817,1719937859105,-500.0,0.00022465,4]
[330910819,1719937859115,-11053.41,0.00022465,4]
[330910821,1719937859125,-500.0,0.00022465,4]
[330910822,1719937859133,-500.0,0.00022465,4]
[330910824,1719937859142,-500.0,0.00022465,4]
[330910825,1719937859151,-500.0,0.00022465,4]
[330910827,1719937859162,-11053.41,0.00022465,4]
[330910829,1719937859172,-500.0,0.00022465,4]
[330910831,1719937859181,-500.0,0.00022465,4]
[330910833,1719937859190,-11053.41,0.00022465,4]
[330910835,1719937859199,-500.0,0.00022465,4]
[330910837,1719937859209,-11053.41,0.00022465,4]
[330910839,1719937859218,-500.0,0.00022465,4]
[330910841,1719937859228,-11053.41,0.00022465,4]
[330910843,1719937859238,-500.0,0.00022465,4]
[330910845,1719937859247,-500.0,0.00022465,4]
[330910847,1719937859256,-437.89,0.00022465,4]
[330910849,1719937859268,-151.0,0.00022465,7]
[330910851,1719937859277,-438.94,0.00022465,4]
[330910853,1719937859287,-500.0,0.00022465,4]
[330910855,1719937859296,-208.549739,0.00022465,7]
[330910857,1719937859306,-500.0,0.00022465,4]
[330910859,1719937859315,-500.0,0.00022465,4]
[330910861,1719937859324,-500.0,0.00022465,4]
[330910863,1719937859334,-500.0,0.00022465,4]
[330910864,1719937859344,-500.0,0.00022465,4]
[330910866,1719937859353,-330.666223,0.00022465,7]
[330910868,1719937859362,-500.0,0.00022465,4]
[330910870,1719937859371,-330.666223,0.00022465,7]
[330910872,1719937859380,-500.0,0.00022465,4]
[330910874,1719937859390,-500.0,0.00022465,4]
[330910876,1719937859400,-333.28,0.00022465,4]
[330910878,1719937859410,-500.0,0.00022465,4]
[330910880,1719937859419,-500.0,0.00022465,4]
[330910882,1719937859428,-151.0,0.00022465,7]
[330910884,1719937859437,-500.0,0.00022465,4]
[330910886,1719937859446,-151.0,0.00022465,7]
[330910888,1719937859455,-151.0,0.00022465,7]
[330910890,1719937859464,-500.0,0.00022465,4]
[330910892,1719937859473,-500.0,0.00022465,4]
[330910894,1719937859482,-500.0,0.00022465,4]
[330910896,1719937859491,-503.41894961,0.00022465,4]
[330910898,1719937859501,-500.0,0.00022465,4]
[330910912,1719937859639,-502.10178379,0.00022465,4]
[330910914,1719937859649,-500.0,0.00022465,4]
[330910916,1719937859658,-500.0,0.00022465,4]
[330910918,1719937859667,-500.0,0.00022465,4]
[330910920,1719937859677,-265.34,0.00022465,4]
[330910922,1719937859686,-500.0,0.00022465,4]
[330910924,1719937859695,-480.94,0.00022465,4]
[330910926,1719937859705,-500.0,0.00022465,4]
[330910928,1719937859714,-500.0,0.00022465,4]
[330910929,1719937859723,-500.0,0.00022465,4]
[330910932,1719937859733,-500.0,0.00022465,4]
[330910934,1719937859743,-603.4,0.00022465,4]
[330910936,1719937859754,-500.0,0.00022465,4]
[330910938,1719937859764,-500.0,0.00022465,4]
[330910939,1719937859774,-500.0,0.00022465,4]
[330910941,1719937859785,-500.0,0.00022465,4]
[330910944,1719937859795,-500.0,0.00022465,4]
[330910946,1719937859806,-150.67,0.00022465,4]
[330910947,1719937859815,-500.0,0.00022465,4]
[330910949,1719937859825,-500.0,0.00022465,4]
[330910951,1719937859836,-500.0,0.00022465,4]
[330910953,1719937859846,-500.0,0.00022465,4]
[330910955,1719937859856,-258.21,0.00022465,4]
[330910957,1719937859866,-500.0,0.00022465,4]
[330910959,1719937859875,-500.0,0.00022465,4]
[330910961,1719937859885,-500.0,0.00022465,2]
[330910963,1719937859895,-500.0,0.00022465,2]
[330910965,1719937859904,-500.0,0.00022465,2]
[330910967,1719937859914,-500.0,0.00022465,4]
[330910969,1719937859923,-500.0,0.00022465,2]
[330910971,1719937859934,-500.0,0.00022465,4]
[330910973,1719937859944,-500.0,0.00022465,4]
[330910975,1719937859953,-500.0,0.00022465,2]
[330910977,1719937859963,-602.61,0.00022465,4]
[330910979,1719937859973,-500.0,0.00022465,2]
[330910981,1719937859983,-500.0,0.00022465,2]
[330910983,1719937859992,-500.0,0.00022465,4]
[330910985,1719937860002,-4773.99777968,0.00022473,2]
[330910987,1719937860015,-204.92818495,0.00022473,2]
[330910988,1719937860026,-1000.0,0.00022489,2]
[330910989,1719937860035,-150.69214422,0.00022489,2]
[330910990,1719937860048,-150.0,0.00022495,2]
[330910991,1719937860059,-150.03162326,0.00022495,2]
[330910992,1719937860068,-500.0,0.00022499,2]
[330910993,1719937860078,-500.0,0.00022499,2]
[330910994,1719937860088,-500.0,0.00022499,2]
[330910995,1719937860098,-500.0,0.00022499,2]
[330910996,1719937860107,-500.0,0.00022499,2]
[330910997,1719937860117,-503.32652924,0.00022499,2]
[330910998,1719937860126,-500.0,0.00022499,2]
[330910999,1719937860136,-500.0,0.00022499,2]
[330911000,1719937860145,-500.0,0.00022499,2]
[330911001,1719937860155,-500.0,0.00022499,2]
[330911002,1719937860163,-500.0,0.00022499,2]
[330911003,1719937860173,-500.0,0.00022499,2]
[330911004,1719937860182,-301.94774907,0.000225,2]
[330911005,1719937860192,-2000.0,0.000225,2]
[330911006,1719937860202,-2000.0,0.000225,2]
[330911007,1719937860211,-2000.0,0.000225,2]
[330911008,1719937860221,-191.0,0.000225,5]
[330911009,1719937860231,-491.0,0.000225,5]
[330911010,1719937860240,-628.87912442,0.000225,2]
[330911011,1719937860250,-4228.0,0.000225,5]
[330911012,1719937860261,-749.0,0.000225,2]
[330911013,1719937860271,-500.0,0.00022502,2]
[330911014,1719937860281,-1142.86544397,0.00022503,2]
[330911015,1719937860291,-17286.71515489,0.0002252,2]
[330911016,1719937860301,-155.11107819,0.00022524,2]
[330911017,1719937860312,-150.05280107,0.00022548,2]
[330911018,1719937860322,-621.37867724,0.0002255,2]
[330911019,1719937860332,-1255.0,0.00022552,2]
[330911020,1719937860341,-500.0,0.00022562,4]
[330911021,1719937860351,-678.67,0.00022562,4]
[330911022,1719937860361,-797.81,0.00022562,4]
[330911023,1719937860370,-665.93,0.00022562,4]
[330911024,1719937860380,-17286.71515489,0.00022582,2]
[330911025,1719937860389,-1017.0,0.000226,2]
[330911026,1719937860399,-426.61758949,0.00022628,2]
[330911027,1719937860408,-17286.71515489,0.00022643,2]
[330911028,1719937860418,-1929.96741105,0.00022645,2]
[330911029,1719937860427,-1954.93085255,0.00022645,2]
[330911030,1719937860437,-162.19001756,0.00022656,2]
[330911031,1719937860446,-166.67,0.00022657,2]
[330911032,1719937860456,-151.0,0.00022658,2]
[330911033,1719937860465,-201.82550171,0.00022666,2]
[330911034,1719937860475,-166.66666666,0.00022669,2]
[330911035,1719937860484,-500.0,0.00022681,2]
[330911036,1719937860494,-4773.99777968,0.00022681,2]
[330911037,1719937860504,-204.92818495,0.00022681,2]
[330911038,1719937860513,-1142.86544397,0.00022696,2]
[330911039,1719937860522,-1000.0,0.000227,2]
[330911040,1719937860531,-153.66295654,0.00022703,2]
[330911041,1719937860540,-165.59222527,0.00022703,2]
[330911042,1719937860550,-17286.71515489,0.00022705,2]
[330911043,1719937860559,-253.8,0.00022714,4]
[330911044,1719937860569,-500.0,0.00022714,4]
[330911045,1719937860578,-2917.21,0.00022714,4]
[330911046,1719937860587,-500.0,0.00022714,4]
[330911047,1719937860597,-500.0,0.00022714,4]
[330911048,1719937860606,-500.0,0.00022714,4]
[330911049,1719937860615,-500.0,0.00022714,4]
[330911050,1719937860624,-500.0,0.00022714,4]
[330911052,1719937860634,-500.0,0.00022714,4]
[330911054,1719937860643,-500.0,0.00022714,4]
[330911056,1719937860653,-500.0,0.00022714,4]
[330911057,1719937860663,-500.0,0.00022714,4]
[330911060,1719937860672,-500.0,0.00022714,4]
[330911061,1719937860681,-152.52853177,0.00022719,2]
[330911063,1719937860690,-152.52853177,0.00022737,2]
[330911065,1719937860700,-150.27446,0.00022744,2]
[330911067,1719937860709,-150.0,0.00022744,2]
[330911069,1719937860717,-500.0,0.00022747,2]
[330911071,1719937860726,-500.0,0.0002275,2]
[330911073,1719937860735,-200.0,0.0002275,2]
[330911075,1719937860744,-151.74222812,0.00022762,2]
[330911076,1719937860753,-164.98217215,0.00022766,2]
[330911078,1719937860762,-17286.71515489,0.00022767,2]
[330911079,1719937860771,-150.05280107,0.00022768,2]
[330911081,1719937860780,-585.18,0.00022771,2]
[330911082,1719937860789,-150.05280107,0.00022786,2]
[330911084,1719937860808,-150.05280107,0.00022792,2]
[330911086,1719937860826,-176.4256309,0.00022799,2]
[330911087,1719937860839,-256.16542967,0.000228,2]
[330911089,1719937860854,-151.0,0.00022801,7]
[330911091,1719937860868,-151.0,0.00022801,7]
[330911093,1719937860884,-151.0,0.00022801,7]
[330911095,1719937860900,-151.0,0.00022801,7]
[330911097,1719937860917,-151.0,0.00022801,7]
[330911098,1719937860930,-151.0,0.00022802,7]
[330911100,1719937860944,-151.0,0.00022802,7]
[330911102,1719937860960,-151.0,0.00022802,7]
[330911104,1719937860974,-150.05280107,0.00022816,2]
[330911106,1719937860987,-17286.71515489,0.00022828,2]
[330911108,1719937861000,-151.0,0.00022849,7]
[330911110,1719937861013,-278.055878,0.00022849,7]
[330911112,1719937861032,-278.055878,0.00022849,7]
[330911114,1719937861045,-198.806832,0.00022849,7]
[330911116,1719937861062,-198.806832,0.00022849,7]
[330911118,1719937861078,-800.0,0.00022849,2]
[330911120,1719937861088,-800.0,0.00022849,2]
[330911122,1719937861103,-800.0,0.00022849,2]
[330911124,1719937861116,-800.0,0.00022849,2]
[330911126,1719937861132,-150.05280107,0.00022851,2]
[330911127,1719937861144,-155.11107819,0.00022852,2]
[330911129,1719937861156,-528.165437,0.00022859,7]
[330911131,1719937861171,-308.734887,0.00022859,7]
[330911133,1719937861183,-528.165437,0.00022859,7]
[330911135,1719937861196,-308.734887,0.00022859,7]
[330911137,1719937861208,-151.0,0.00022859,7]
[330911139,1719937861221,-151.0,0.00022859,7]
[330911141,1719937861233,-1000.0,0.00022859,2]
[330911143,1719937861245,-1000.0,0.00022859,2]
[330911144,1719937861258,-1000.0,0.00022859,2]
[330911146,1719937861271,-468.0732,0.00022859,2]
[330911147,1719937861284,-704.650433,0.00022859,7]
[330911149,1719937861296,-151.0,0.00022859,7]
[330911150,1719937861308,-704.650433,0.00022859,7]
[330911152,1719937861321,-151.0,0.00022859,7]
[330911154,1719937861333,-330.666223,0.00022859,7]
[330911156,1719937861346,-330.666223,0.00022859,7]
[330911159,1719937861358,-500.0,0.00022859,2]
[330911161,1719937861371,-424.68,0.00022859,2]
[330911163,1719937861383,-621.37867724,0.00022883,2]
[330911165,1719937861396,-256.16542967,0.00022884,2]
[330911168,1719937861409,-745.0115948,0.00022884,2]
[330911170,1719937861423,-8808.2331117,0.00022884,2]
[330911172,1719937861435,-500.0,0.00022886,2]
[330911175,1719937861448,-500.0,0.00022886,2]
[330911177,1719937861460,-500.0,0.00022886,2]
[330911179,1719937861473,-527.87,0.00022889,4]
[330911182,1719937861485,-4773.99777968,0.0002289,2]
[330911184,1719937861498,-150.05280107,0.0002289,2]
[330911186,1719937861511,-204.92818495,0.0002289,2]
[330911188,1719937861524,-181.65169362,0.0002289,2]
[330911190,1719937861536,-426.61758949,0.0002289,2]
[330911192,1719937861549,-1929.96741105,0.0002289,2]
[330911193,1719937861561,-1954.93085255,0.0002289,2]
[330911194,1719937861574,-1142.86544397,0.0002289,2]
[330911195,1719937861586,-17286.71515489,0.0002289,2]
[330911196,1719937861598,-151.0,0.0002289,7]
[330911197,1719937861609,-151.0,0.0002289,7]
[330911198,1719937861622,-276.931086,0.0002289,7]
[330911199,1719937861633,-500.0,0.00022896,4]
[330911200,1719937861645,-150.0,0.00022896,4]
[330911201,1719937861657,-246.49,0.00022896,4]
[330911202,1719937861669,-500.0,0.00022896,4]
[330911203,1719937861681,-151.0,0.00022896,7]
[330911204,1719937861694,-500.0,0.00022896,4]
[330911205,1719937861707,-151.0,0.00022896,7]
[330911206,1719937861720,-151.0,0.00022896,7]
[330911208,1719937861731,-151.0,0.00022896,7]
[330911209,1719937861743,-151.0,0.00022896,7]
[330911210,1719937861756,-151.0,0.00022896,7]
[330911211,1719937861769,-151.0,0.00022896,7]
[330911212,1719937861782,-500.0,0.00022896,4]
[330911213,1719937861795,-151.0,0.00022897,7]
[330911214,1719937861807,-151.0,0.00022897,7]
[330911216,1719937861822,-151.0,0.00022897,7]
[330911218,1719937861835,-155.8476,0.00022897,7]
[330911220,1719937861847,-151.0,0.00022897,7]
[330911223,1719937861861,-151.0,0.00022897,7]
[330911225,1719937861876,-151.0,0.00022897,7]
[330911227,1719937861889,-151.0,0.00022897,7]
[330911230,1719937861902,-151.0,0.00022897,7]
[330911232,1719937861914,-151.0,0.00022897,7]
[330911234,1719937861928,-151.0,0.00022897,7]
[330911237,1719937861941,-151.0,0.00022897,7]
[330911239,1719937861955,-151.0,0.00022897,7]
[330911241,1719937861967,-151.0,0.00022897,7]
[330911244,1719937861980,-151.0,0.00022897,7]
[330911246,1719937861992,-151.0,0.00022897,7]
[330911248,1719937862005,-391.837129,0.00022897,7]
[330911251,1719937862023,-262.917289,0.00022897,7]
[330911253,1719937862036,-391.837129,0.00022897,7]
[330911256,1719937862049,-151.0,0.00022897,7]
[330911258,1719937862063,-387.232909,0.00022897,7]
[330911260,1719937862077,-151.0,0.00022897,7]
[330911263,1719937862091,-387.232909,0.00022897,7]
[330911265,1719937862106,-151.0,0.00022897,7]
[330911268,1719937862119,-151.0,0.00022897,7]
[330911270,1719937862133,-151.0,0.00022897,7]
[330911273,1719937862145,-151.0,0.00022897,7]
[330911275,1719937862154,-151.0,0.00022897,7]
[330911277,1719937862164,-203.756009,0.00022897,7]
[330911278,1719937862174,-203.756009,0.00022897,7]
[330911281,1719937862183,-151.0,0.00022897,7]
[330911283,1719937862194,-500.0,0.00022897,4]
[330911285,1719937862203,-500.0,0.00022897,4]
[330911287,1719937862212,-500.0,0.00022897,4]
[330911289,1719937862223,-500.0,0.00022897,4]
[330911291,1719937862232,-1472.46,0.00022897,4]
[330911293,1719937862242,-500.0,0.00022897,4]
[330911295,1719937862251,-879.73,0.00022897,4]
[330911297,1719937862261,-2048.8,0.00022897,4]
[330911299,1719937862272,-500.0,0.00022897,4]
[330911301,1719937862281,-168.35720066,0.00022897,4]
[330911303,1719937862291,-500.0,0.00022897,4]
[330911330,1719937862533,-151.0,0.00022898,7]
[330911333,1719937862562,-158.000005,0.00022898,7]
[330911336,1719937862574,-151.0,0.00022898,7]
[330911338,1719937862584,-504.85,0.00022898,4]
[330911340,1719937862594,-504.85,0.00022898,4]
[330911342,1719937862604,-504.85,0.00022898,4]
[330911344,1719937862614,-151.0,0.00022898,7]
[330911346,1719937862623,-504.85,0.00022898,4]
[330911348,1719937862633,-505.07,0.00022898,4]
[330911350,1719937862643,-316.991332,0.00022898,7]
[330911352,1719937862652,-530.21,0.00022898,4]
[330911353,1719937862662,-316.991332,0.00022898,7]
[330911355,1719937862672,-151.0,0.00022898,7]
[330911358,1719937862682,-4005.79,0.00022898,4]
[330911359,1719937862692,-646.165723,0.00022898,7]
[330911361,1719937862701,-2302.741087,0.00022898,7]
[330911363,1719937862711,-500.0,0.00022898,4]
[330911365,1719937862720,-500.0,0.00022898,4]
[330911367,1719937862729,-500.0,0.00022898,4]
[330911369,1719937862739,-500.0,0.00022898,4]
[330911371,1719937862748,-369.14,0.00022898,4]
[330911373,1719937862758,-646.165723,0.00022898,7]
[330911375,1719937862769,-2302.741087,0.00022898,7]
[330911377,1719937862778,-608.43047934,0.00022898,4]
[330911379,1719937862787,-500.0,0.00022898,4]
[330911381,1719937862796,-151.0,0.00022898,7]
[330911383,1719937862806,-1013.548976,0.00022898,7]
[330911385,1719937862815,-151.0,0.00022898,7]
[330911387,1719937862827,-1013.548976,0.00022898,7]
[330911389,1719937862837,-545.34,0.00022898,4]
[330911391,1719937862847,-545.34,0.00022898,4]
[330911393,1719937862856,-545.34,0.00022898,4]
[330911395,1719937862865,-545.34,0.00022898,4]
[330911397,1719937862875,-545.43,0.00022898,4]
[330911399,1719937862884,-743.39,0.00022898,4]
[330911401,1719937862894,-643.57,0.00022898,4]
[330911403,1719937862903,-500.0,0.00022898,4]
[330911405,1719937862912,-500.0,0.00022898,4]
[330911407,1719937862922,-500.0,0.00022898,4]
[330911409,1719937862931,-500.0,0.00022898,4]
[330911411,1719937862941,-450.02,0.00022898,4]
[330911413,1719937862950,-500.0,0.00022898,4]
[330911415,1719937862959,-11053.41,0.00022898,4]
[330911417,1719937862968,-500.0,0.00022899,2]
[330911419,1719937862978,-500.0,0.00022899,4]
[330911421,1719937862987,-500.0,0.00022899,4]
[330911423,1719937862996,-2917.21,0.00022899,4]
[330911425,1719937863005,-2917.21,0.00022899,4]
[330911427,1719937863018,-500.0,0.00022899,4]
[330911429,1719937863029,-500.0,0.00022899,4]
[330911431,1719937863038,-500.0,0.00022899,4]
[330911432,1719937863051,-500.0,0.00022899,4]
[330911434,1719937863061,-150.0,0.00022899,4]
[330911436,1719937863071,-635.9235,0.00022899,4]
[330911438,1719937863080,-572.34,0.00022899,4]
[330911440,1719937863090,-500.0,0.00022899,4]
[330911442,1719937863103,-329.24,0.00022899,4]
[330911445,1719937863113,-151.0,0.00022899,7]
[330911447,1719937863122,-151.0,0.00022899,7]
[330911449,1719937863131,-151.0,0.00022899,7]
[330911451,1719937863142,-500.0,0.00022899,4]
[330911452,1719937863151,-500.0,0.00022899,4]
[330911454,1719937863160,-441.09,0.00022899,4]
[330911456,1719937863171,-530.21,0.00022899,4]
[330911458,1719937863181,-4005.79,0.00022899,4]
[330911460,1719937863190,-500.0,0.00022899,4]
[330911462,1719937863199,-500.0,0.00022899,4]
[330911464,1719937863209,-708.18,0.00022899,4]
[330911466,1719937863218,-500.0,0.00022899,4]
[330911468,1719937863228,-327.45,0.00022899,4]
[330911470,1719937863237,-151.0,0.00022899,7]
[330911472,1719937863247,-210.06246653,0.00022899,2]
[330911474,1719937863258,-500.0,0.00022899,4]
[330911476,1719937863269,-500.0,0.00022899,4]
[330911478,1719937863278,-500.0,0.00022899,4]
[330911480,1719937863288,-151.0,0.00022899,7]
[330911482,1719937863297,-500.0,0.00022899,4]
[330911484,1719937863307,-1035.105158,0.00022899,7]
[330911486,1719937863316,-368.887552,0.00022899,7]
[330911488,1719937863325,-1035.105158,0.00022899,7]
[330911490,1719937863335,-368.887552,0.00022899,7]
[330911492,1719937863345,-500.0,0.00022899,4]
[330911494,1719937863355,-219.619753,0.00022899,7]
[330911496,1719937863365,-500.0,0.00022899,4]
[330911498,1719937863374,-797.81,0.00022899,4]
[330911500,1719937863384,-219.619753,0.00022899,7]
[330911502,1719937863394,-743.39,0.00022899,4]
[330911504,1719937863404,-6600.079412,0.00022899,7]
[330911506,1719937863414,-500.0,0.00022899,4]
[330911508,1719937863424,-500.0,0.00022899,4]
[330911510,1719937863434,-6600.079412,0.00022899,7]
[330911512,1719937863444,-320.14,0.00022899,4]
[330911514,1719937863454,-151.0,0.00022899,7]
[330911516,1719937863464,-151.0,0.00022899,7]
[330911518,1719937863474,-249.341596,0.00022899,7]
[330911520,1719937863483,-346.146739,0.00022899,7]
[330911522,1719937863493,-346.146739,0.00022899,7]
[330911524,1719937863503,-249.341596,0.00022899,7]
[330911526,1719937863512,-151.0,0.00022899,7]
[330911528,1719937863524,-151.0,0.00022899,7]
[330911530,1719937863534,-500.0,0.00022899,4]
[330911532,1719937863543,-214.600696,0.00022899,7]
[330911534,1719937863554,-500.0,0.00022899,4]
[330911536,1719937863564,-214.600696,0.00022899,7]
[330911538,1719937863574,-495.77190451,0.00022899,4]
[330911540,1719937863585,-1472.46,0.00022899,4]
[330911542,1719937863595,-500.0,0.00022899,4]
[330911544,1719937863605,-500.0,0.00022899,4]
[330911546,1719937863616,-879.73,0.00022899,4]
[330911549,1719937863627,-665.93,0.00022899,4]
[330911551,1719937863636,-2048.8,0.00022899,4]
[330911553,1719937863646,-527.87,0.00022899,4]
[330911555,1719937863657,-500.0,0.00022899,4]
[330911557,1719937863666,-11053.41,0.00022899,4]
[330911559,1719937863676,-446.02,0.00022899,4]
[330911561,1719937863685,-284260.36870456,0.000229,7]
[330911563,1719937863695,-250000.0,0.000229,2]
[330911565,1719937863704,-191.0,0.000229,5]
[330911566,1719937863714,-200.0,0.000229,5]
[330911568,1719937863723,-491.0,0.000229,5]
[330911570,1719937863733,-491.0,0.000229,5]
[330911572,1719937863743,-982.0,0.000229,5]